bitfinex-derivatives/quotes_ETHF0:USTF0_20250616
["timestamp","ask_amount","ask_price","bid_price","bid_amount"]
[1750062568120,6.033,2622.8,2622.7,0.76253]
[1750062568518,6.033,2622.8,2622.7,1.42463]
[1750062569223,6.7955,2622.8,2622.7,1.42463]
[1750062569623,6.033,2622.8,2622.7,1.42463]
[1750062569921,6.7955,2622.8,2622.7,1.42463]
[1750062570427,6.033,2622.8,2622.7,1.42463]
[1750062570625,0.70880936,2622.9,2622.8,0.7625]
[1750062570926,0.76246,2623.0,2622.9,0.76248]
[1750062572425,1.6580587,2623.0,2622.9,0.76248]
[1750062573017,0.76246,2623.0,2622.9,0.76248]
[1750062573326,2.35074191,2623.0,2622.9,0.76248]
[1750062574321,0.7625,2622.9,2622.8,0.7625]
[1750062574725,1.65846201,2622.9,2622.8,0.7625]
[1750062576429,1.65865271,2622.9,2622.8,0.7625]
[1750062576726,0.76253,2622.8,2622.7,0.76251]
[1750062576927,1.41153,2622.8,2622.7,0.76251]
[1750062577127,0.76253,2622.7,2622.6,3.2078]
[1750062577323,0.649,2622.8,2622.7,0.76253]
[1750062577526,0.649,2622.8,2622.7,3.63645353]
[1750062578022,0.06737406,2623.0,2622.9,0.76248]
[1750062578231,0.96330209,2623.0,2622.9,3.63640353]
[1750062580231,1.72575209,2623.0,2622.9,3.63640353]
[1750062580532,0.96330209,2623.0,2622.9,3.63640353]
[1750062581033,1.72575209,2623.0,2622.9,0.76248]
[1750062581835,1.72575209,2623.0,2622.8,3.53102353]
[1750062581836,0.76248,2622.9,2622.8,0.76248]
[1750062582031,46.36,2623.3,2622.8,0.76248]
[1750062582032,3.2078,2624.2,2622.9,1.90618]
[1750062582225,3.2078,2624.2,2623.8,6.84392353]
[1750062582431,0.76219,2623.9,2623.8,3.2078]
[1750062582728,0.76217,2624.0,2623.8,0.76221]
[1750062583134,0.76219,2623.9,2623.7,0.76223]
[1750062583337,0.76219,2623.9,2623.6,2.87963379]
[1750062583531,0.76219,2623.9,2623.7,0.76224]
[1750062584028,0.00571026,2624.2,2624.1,0.76213]
[1750062584227,0.00571026,2624.2,2624.1,6.84385353]
[1750062585129,0.6387,2624.9,2624.7,0.76194]
[1750062585335,0.6387,2624.9,2624.7,2.87392353]
[1750062585534,0.76192,2624.8,2624.7,2.87392353]
[1750062585735,1.37277393,2624.8,2624.7,2.87392353]
[1750062585930,1.37277393,2624.8,2624.6,0.76196]
[1750062586139,1.37277393,2624.8,2624.7,2.87392353]
[1750062586327,0.61085393,2624.8,2624.7,2.87392353]
[1750062586526,6.032,2624.9,2624.7,3.63587353]
[1750062586737,6.032,2624.9,2624.7,2.87392353]
[1750062586738,6.79391,2624.9,2624.7,2.87392353]
[1750062587239,0.76192,2624.8,2624.7,2.87392353]
[1750062589832,8.77835116,2624.9,2624.7,2.87392353]
[1750062590037,8.77835116,2624.9,2624.7,3.63586353]
[1750062590434,0.76192,2624.8,2624.7,2.87392353]
[1750062590830,0.76192,2624.8,2624.7,2.94129759]
[1750062593239,0.76192,2624.8,2624.7,3.70324759]
[1750062593437,0.76192,2624.8,2624.7,2.94129759]
[1750062593740,0.76192,2624.8,2624.7,0.06737406]
[1750062593936,0.76203,2624.5,2624.3,0.76205]
[1750062594342,0.76207,2624.3,2624.2,3.2078]
[1750062594544,0.6699,2624.4,2624.2,3.9699]
[1750062594735,1.43196,2624.4,2624.2,3.9699]
[1750062595643,1.43196,2624.4,2624.3,0.76207]
[1750062596647,0.76207,2624.3,2624.2,3.96989]
[1750062596847,0.76207,2624.3,2624.2,3.2078]
[1750062597145,2.75357,2624.3,2624.2,3.2078]
[1750062598641,1.9915,2624.3,2624.0,0.76214]
[1750062599043,0.76214,2624.1,2623.9,1.40017]
[1750062599244,0.76214,2624.1,2623.9,0.76217]
[1750062599643,0.76214,2624.1,2624.0,0.76215]
[1750062600147,6.092,2624.2,2623.8,6.84392353]
[1750062600336,6.092,2624.2,2623.8,3.2078]
[1750062600337,0.76219,2623.9,2623.8,3.2078]
[1750062600544,0.76224,2623.7,2623.6,0.00571026]
[1750062601243,7.9888,2623.8,2623.6,0.00571026]
[1750062601244,0.6155,2623.8,2623.6,0.00571026]
[1750062601549,0.76217,2624.0,2623.8,0.76219]
[1750062601738,7.50915,2624.1,2623.9,0.76219]
[1750062602147,0.76216,2624.0,2623.9,0.76219]
[1750062602343,6.747,2624.1,2623.7,6.69762353]
[1750062602546,3.2078,2624.0,2623.6,0.76798026]
[1750062602842,0.76224,2623.7,2623.6,0.00571026]
[1750062603039,0.76243,2623.1,2622.8,3.8237]
[1750062603451,0.76243,2623.1,2622.9,0.76246]
[1750062603647,0.76243,2623.1,2623.0,0.76245]
[1750062603849,0.76241,2623.2,2623.0,0.76245]
[1750062604050,0.76242,2623.1,2623.0,0.76245]
[1750062604445,0.76241,2623.2,2623.0,0.76245]
[1750062604748,6.85538,2623.3,2623.1,0.76239]
[1750062604944,0.00571026,2623.4,2623.2,0.76239]
[1750062605148,0.76238,2623.3,2623.1,3.63632353]
[1750062605550,0.76238,2623.3,2623.2,0.76239]
[1750062605748,6.09971026,2623.4,2623.3,0.76236]
[1750062605951,0.00571026,2623.4,2623.3,3.63628353]
[1750062611055,0.00571026,2623.4,2623.3,0.76236]
[1750062611260,0.00571026,2623.4,2623.3,3.63628353]
[1750062613558,0.76222,2623.8,2623.7,0.76222]
[1750062613763,0.76222,2623.8,2623.7,3.63614353]
[1750062613958,0.76222,2623.8,2623.7,2.87392353]
[1750062614455,0.76226,2623.7,2623.6,0.76225]
[1750062614754,3.8566,2624.0,2623.9,0.76219]
[1750062615060,3.96996,2624.0,2623.9,2.87392353]
[1750062615254,0.76219,2623.9,2623.8,0.7622]
[1750062615758,0.762,2624.6,2624.5,0.762]
[1750062615959,0.762,2624.6,2624.5,2.87392353]
[1750062615960,1.41078,2624.6,2624.5,2.87392353]
[1750062616551,1.41078,2624.6,2624.5,3.63593353]
[1750062617152,1.41078,2624.6,2624.5,2.87392353]
[1750062617454,1.41078,2624.6,2624.5,3.63593353]
[1750062617858,1.41078,2624.6,2624.4,3.63594353]
[1750062618159,1.41078,2624.6,2624.5,0.76201]
[1750062619362,1.41078,2624.6,2624.4,0.76203]
[1750062619655,0.76201,2624.5,2624.4,0.76203]
[1750062619862,2.7046,2624.6,2624.4,0.76203]
[1750062620063,2.7046,2624.6,2624.5,0.76201]
[1750062620258,1.4108,2624.6,2624.5,0.76201]
[1750062620559,0.6488,2624.6,2624.5,0.76201]
[1750062620762,0.76197,2624.7,2624.6,0.76198]
[1750062621166,0.76194,2624.8,2624.6,0.76198]
[1750062621464,0.76195,2624.7,2624.6,0.76198]
[1750062624754,0.6596,2624.9,2624.8,0.76192]
[1750062624954,0.6596,2624.9,2624.8,6.19836262]
[1750062625159,2.02262493,2625.0,2624.9,0.76189]
[1750062625360,1.39352493,2625.0,2624.9,0.76189]
[1750062626062,0.63163493,2625.0,2624.9,0.76189]
[1750062626268,0.6455,2625.1,2624.9,0.76189]
[1750062626565,1.40735,2625.1,2624.9,0.76189]
[1750062627061,1.40735,2625.1,2625.0,0.76187]
[1750062627264,0.76187,2625.0,2624.9,0.76189]
[1750062627462,2.03950335,2625.1,2625.0,0.76187]
[1750062627668,6.092,2625.3,2625.2,0.76181]
[1750062627864,6.092,2625.3,2625.1,0.76182]
[1750062628370,0.76195,2624.7,2624.6,3.2078]
[1750062628568,3.2078,2624.7,2624.3,0.00571026]
[1750062628766,0.76197,2624.7,2624.5,0.76199]
[1750062629665,0.76198,2624.6,2624.5,0.76199]
[1750062630064,6.148,2625.0,2624.4,3.2078]
[1750062630266,0.76195,2624.8,2624.5,1.2683]
[1750062630572,0.76195,2624.8,2624.6,0.76196]
[1750062630773,1.3091,2625.0,2624.7,0.76195]
[1750062631076,0.76195,2624.8,2624.6,0.76196]
[1750062631267,0.76195,2624.7,2624.6,0.76196]
[1750062631667,0.76194,2624.8,2624.6,0.76196]
[1750062631967,0.76196,2624.7,2624.5,1.2683]
[1750062632866,0.76194,2624.8,2624.5,1.2683]
[1750062633165,0.76194,2624.8,2624.7,0.76195]
[1750062633365,0.76191,2624.9,2624.8,0.76192]
[1750062633569,0.6122,2625.2,2625.1,0.76184]
[1750062633871,0.7618,2625.3,2625.2,0.76181]
[1750062634370,0.76177,2625.4,2625.3,0.76178]
[1750062634567,0.6237,2625.5,2625.4,0.76175]
[1750062634774,0.6237,2625.5,2625.3,0.76176]
[1750062634961,0.6237,2625.5,2625.2,2.0235]
[1750062634962,0.6237,2625.5,2625.4,0.76175]
[1750062635164,0.6237,2625.5,2625.3,0.76176]
[1750062635365,0.6237,2625.5,2625.2,0.679]
[1750062635773,1.38543,2625.5,2625.4,0.76175]
[1750062635973,0.6237,2625.5,2625.4,6.19819262]
[1750062636166,0.7617,2625.6,2625.5,0.76172]
[1750062636577,0.6597,2625.7,2625.6,0.76169]
[1750062636766,1.42136,2625.7,2625.6,0.76169]
[1750062636966,1.42136,2625.7,2625.4,5.43644262]
[1750062636967,0.76169,2625.6,2625.5,0.7617]
[1750062637768,2.05028084,2625.7,2625.5,0.76172]
[1750062637969,1.42138,2625.7,2625.4,44.43644262]
[1750062638169,1.42138,2625.7,2625.5,0.7617]
[1750062638872,0.6597,2625.7,2625.5,0.7617]
[1750062639068,0.76169,2625.6,2625.5,0.7617]
[1750062639376,0.76172,2625.5,2625.4,45.19817262]
[1750062639571,0.7617,2625.6,2625.4,45.19817262]
[1750062639875,0.7617,2625.6,2625.5,0.76172]
[1750062640067,0.76177,2625.4,2625.3,0.76176]
[1750062640473,0.76177,2625.4,2625.3,39.0]
[1750062640968,5.11221,2625.4,2624.8,2.09461]
[1750062641174,0.76193,2624.8,2624.7,0.76194]
[1750062642673,0.76192,2624.9,2624.7,0.76194]
[1750062643475,0.76192,2624.9,2624.8,0.76192]
[1750062643670,3.2078,2625.0,2624.9,0.7619]
[1750062643871,3.2078,2625.0,2624.9,6.19834262]
[1750062644574,3.96967,2625.0,2624.9,6.19834262]
[1750062644874,3.96967,2625.0,2624.9,5.43644262]
[1750062645077,3.96967,2625.0,2624.9,6.19834262]
[1750062645577,3.96967,2625.0,2624.9,5.43644262]
[1750062645977,3.96967,2625.0,2624.9,6.19834262]
[1750062647479,3.2078,2625.0,2624.9,6.19834262]
[1750062647682,3.96967,2625.0,2624.9,6.19834262]
[1750062648269,3.2078,2625.0,2624.9,6.19834262]
[1750062649378,3.96967,2625.0,2624.9,5.43644262]
[1750062649576,0.76189,2624.9,2624.8,0.7619]
[1750062649774,0.76192,2624.8,2624.7,2.27669077]
[1750062649977,0.76192,2624.8,2624.7,7.71313339]
[1750062650677,0.76192,2624.8,2624.7,1.51475077]
[1750062651083,0.76192,2624.8,2624.7,0.76195]
[1750062651581,0.76192,2624.8,2624.7,2.27670077]
[1750062651978,0.76195,2624.7,2624.6,2.27671077]
[1750062652186,0.76186,2625.1,2625.0,0.76185]
[1750062652375,1.40971,2625.2,2625.0,5.43644262]
[1750062652581,0.6479,2625.2,2625.1,0.76184]
[1750062652779,1.40971,2625.2,2625.0,7.71693263]
[1750062653183,0.6479,2625.2,2625.1,0.76184]
[1750062657186,1.40971,2625.2,2625.1,0.76184]
[1750062658290,0.76184,2625.1,2625.0,1.51864001]
[1750062658493,0.76187,2625.0,2624.9,0.76189]
[1750062659783,4.4978,2625.1,2625.0,0.76187]
[1750062659784,5.25966,2625.1,2625.0,0.76187]
[1750062659982,4.4978,2625.1,2625.0,0.76187]
[1750062660489,0.76187,2625.0,2624.9,0.76187]
[1750062660689,5.25966,2625.1,2625.0,0.76187]
[1750062660984,5.25966,2625.1,2624.8,6.95508263]
[1750062660985,4.4978,2625.1,2624.8,1.51864001]
[1750062661190,4.4978,2625.1,2624.7,0.76194]
[1750062661390,0.76195,2624.7,2624.6,1.51864001]
[1750062661589,0.76198,2624.6,2624.5,2.28065001]
[1750062661890,1.42928,2624.6,2624.5,2.28065001]
[1750062662593,0.6673,2624.6,2624.5,2.28065001]
[1750062663290,1.42928,2624.6,2624.5,2.28065001]
[1750062663494,0.6673,2624.6,2624.5,2.28065001]
[1750062663797,1.42928,2624.6,2624.5,2.28065001]
[1750062663997,0.6673,2624.6,2624.5,2.28065001]
[1750062667293,1.42928,2624.6,2624.5,2.28065001]
[1750062667493,1.42928,2624.6,2624.5,2.28189328]
[1750062668896,1.42928,2624.6,2624.5,4.89525182]
[1750062669703,0.6673,2624.6,2624.5,4.89525182]
[1750062670500,3.96974,2624.8,2624.7,0.76195]
[1750062670707,3.2078,2624.8,2624.7,3.37530854]
[1750062670898,3.2078,2624.8,2624.7,4.89642673]
[1750062671102,1.39149,2625.0,2624.9,0.7619]
[1750062671406,1.39149,2625.0,2624.9,3.37525854]
[1750062671607,0.6296,2625.0,2624.9,3.37525854]
[1750062671793,0.6296,2625.0,2624.9,4.89625302]
[1750062672908,1.39147,2625.0,2624.9,7.71673414]
[1750062674406,1.39147,2625.0,2624.9,6.95483414]
[1750062674905,1.39147,2625.0,2624.9,7.71673414]
[1750062675908,1.39147,2625.0,2624.9,6.95483414]
[1750062676305,1.39147,2625.0,2624.9,7.71673414]
[1750062676606,1.39147,2625.0,2624.9,6.95483414]
[1750062676806,1.39147,2625.0,2624.9,7.71673414]
[1750062677804,3.2078,2625.1,2625.0,0.76187]
[1750062678196,0.76187,2625.0,2624.9,7.71670414]
[1750062678397,0.6265,2625.2,2625.1,0.76184]
[1750062678600,0.6572,2625.5,2625.0,2.28158369]
[1750062678601,3.2078,2625.5,2625.0,2.28158369]
[1750062678811,1.3477,2625.7,2625.4,3.2078]
[1750062679008,0.76175,2625.4,2625.3,0.00571026]
[1750062679204,3.2078,2625.4,2625.3,0.00571026]
[1750062679409,6.117,2625.6,2625.3,0.00571026]
[1750062679603,1.3442,2625.5,2625.3,0.00571026]
[1750062679804,0.76175,2625.4,2625.3,0.00571026]
[1750062680210,3.2078,2625.7,2625.3,0.00571026]
[1750062680409,0.76169,2625.6,2625.4,6.19556966]
[1750062680611,0.76169,2625.6,2625.4,5.43383966]
[1750062680921,3.2078,2625.7,2625.4,7.71629713]
[1750062680922,3.96947,2625.7,2625.4,7.71629713]
[1750062681208,0.76169,2625.6,2625.4,5.43383966]
[1750062681515,0.76174,2625.5,2625.3,1.52642773]
[1750062682214,0.6471,2625.6,2625.3,1.52642773]
[1750062682215,1.40881,2625.6,2625.3,2.28820773]
[1750062682406,1.40881,2625.6,2625.4,0.76175]
[1750062682715,1.40879,2625.6,2625.5,3.2078]
[1750062683611,0.76156,2626.1,2625.5,4.72851747]
[1750062683911,2.512,2626.4,2625.9,3.2078]
[1750062684114,2.512,2626.4,2626.1,5.43383966]
[1750062684115,0.76151,2626.3,2626.1,5.43383966]
[1750062684311,0.76151,2626.3,2626.1,6.19537966]
[1750062684614,2.5647545,2626.4,2626.1,5.43383966]
[1750062685017,1.1836745,2626.4,2626.2,0.7615]
[1750062685321,0.5657745,2626.4,2626.3,0.76149]
[1750062685515,0.76144,2626.5,2626.3,0.76149]
[1750062685817,0.76141,2626.6,2626.4,5.43383966]
[1750062686012,0.76141,2626.6,2626.4,6.19528966]
[1750062686820,0.76143,2626.5,2626.4,5.43383966]
[1750062687020,0.76142,2626.6,2626.4,6.19529966]
[1750062687317,0.76143,2626.5,2626.4,5.43383966]
[1750062687719,3.2078,2626.6,2626.2,0.76152]
[1750062687914,0.76148,2626.4,2626.2,0.76152]
[1750062688110,0.76145,2626.5,2626.3,0.76149]
[1750062688720,0.76146,2626.4,2626.1,3.2078]
[1750062688922,0.76146,2626.4,2626.2,0.7615]
[1750062689122,0.76146,2626.4,2626.1,4.5331]
[1750062689618,0.76146,2626.4,2626.2,0.76152]
[1750062689818,0.76146,2626.4,2626.3,0.76149]
[1750062690019,0.76146,2626.4,2626.2,0.7615]
[1750062690221,2.52866109,2626.7,2626.2,0.7615]
[1750062690415,0.76148,2626.4,2626.2,0.7615]
[1750062690620,3.2078,2626.6,2626.1,3.96933]
[1750062690830,0.76151,2626.3,2626.1,3.96933]
[1750062691215,1.3577,2626.5,2626.1,3.96934]
[1750062691524,0.7615,2626.3,2626.1,3.96934]
[1750062692223,0.76152,2626.2,2626.1,3.96934]
[1750062692425,0.76151,2626.3,2626.1,3.96934]
[1750062692814,0.76151,2626.3,2626.2,2.87120879]
[1750062694020,0.76147,2626.4,2626.2,3.63272879]
[1750062694226,3.2078,2626.6,2626.2,2.87120879]
[1750062694424,3.96923,2626.6,2626.4,2.87120879]
[1750062694623,3.96923,2626.6,2626.4,3.63263879]
[1750062694828,0.76143,2626.5,2626.4,3.63263879]
[1750062695030,0.76143,2626.5,2626.4,6.84043879]
[1750062695327,0.76142,2626.6,2626.4,6.07900879]
[1750062695528,0.76143,2626.5,2626.4,6.84045879]
[1750062695729,0.76143,2626.5,2626.4,6.07900879]
[1750062697123,0.76143,2626.5,2626.4,6.84046879]
[1750062697324,0.76141,2626.6,2626.5,0.76141]
[1750062697524,0.76141,2626.6,2626.5,3.63261879]
[1750062697719,1.17096109,2626.7,2626.5,2.87120879]
[1750062698027,1.31444109,2626.7,2626.6,0.7614]
[1750062698425,1.31444109,2626.7,2626.5,4.28801879]
[1750062698625,0.7614,2626.6,2626.5,4.28801879]
[1750062698825,0.7614,2626.6,2626.5,1.41681]
[1750062700229,1.31445109,2626.7,2626.6,0.7614]
[1750062700430,0.7614,2626.6,2626.5,1.41681]
[1750062700631,0.76139,2626.7,2626.6,0.7614]
[1750062700832,1.26651627,2626.7,2626.5,0.6554]
[1750062701133,1.26651627,2626.7,2626.6,0.7614]
[1750062701525,0.7614,2626.6,2626.5,1.41682]
[1750062703430,0.76155,2626.1,2626.0,11.76806747]
[1750062703627,3.91028,2626.5,2626.0,10.1117]
[1750062703821,0.76155,2626.1,2626.0,3.8337]
[1750062704023,0.76167,2625.7,2625.4,10.1559336]
[1750062704325,0.76156,2626.1,2625.9,0.76159]
[1750062704629,0.76156,2626.1,2625.5,1.90431]
[1750062704630,0.6523,2626.4,2626.0,8.63521613]
[1750062704931,1.41376,2626.4,2626.3,5.42741613]
[1750062705124,0.6523,2626.4,2626.3,6.18890613]
[1750062705434,0.76146,2626.4,2626.3,5.42741613]
[1750062705933,0.76146,2626.4,2626.3,6.18890613]
[1750062706134,0.76145,2626.5,2626.3,6.18890613]
[1750062706432,0.76145,2626.5,2626.4,3.2078]
[1750062709736,0.76152,2626.2,2626.1,5.98711747]
[1750062709934,7.5591,2626.6,2626.1,5.98711747]
[1750062710133,0.76146,2626.4,2626.3,0.76148]
[1750062710733,0.76146,2626.4,2626.3,6.18889613]
[1750062711633,7.5591,2626.6,2626.3,6.18889613]
[1750062711840,0.76148,2626.3,2626.2,6.9481336]
[1750062712040,0.76148,2626.3,2626.2,7.7096436]
[1750062712340,0.76146,2626.4,2626.3,0.76148]
[1750062712933,0.76146,2626.4,2626.2,8.3744136]
[1750062713139,0.76146,2626.4,2626.3,0.76148]
[1750062713437,0.76146,2626.4,2626.3,2.28219747]
[1750062714335,0.76146,2626.4,2626.3,1.52071747]
[1750062714839,0.76146,2626.4,2626.3,2.28219747]
[1750062717035,2.06134,2626.5,2626.4,0.76145]
[1750062717343,0.76144,2626.5,2626.4,0.76145]
[1750062717640,7.5591,2626.6,2626.4,0.76145]
[1750062717641,8.32051,2626.6,2626.5,0.76142]
[1750062717846,0.76142,2626.5,2626.4,2.28214747]
[1750062719139,0.76142,2626.5,2626.4,1.52071747]
[1750062719336,0.76145,2626.4,2626.3,1.52071747]
[1750062719640,0.76145,2626.4,2626.3,2.28219747]
[1750062720840,0.76145,2626.4,2626.3,5.15288281]
[1750062722446,0.76145,2626.4,2626.3,4.39140281]
[1750062723346,0.76145,2626.4,2626.3,5.15288281]
[1750062723638,0.76143,2626.5,2626.4,0.76143]
[1750062723948,7.70741,2626.6,2626.5,0.76142]
[1750062724247,1.42941,2626.6,2626.5,0.76142]
[1750062724445,1.42941,2626.6,2626.5,3.63210534]
[1750062724646,0.76141,2626.6,2626.5,3.63210534]
[1750062724841,0.76139,2626.6,2626.5,3.63210534]
[1750062725040,0.76139,2626.6,2626.5,5.15307162]
[1750062725346,0.76139,2626.6,2626.5,5.15305162]
[1750062727449,0.76139,2626.6,2626.5,5.15286736]
[1750062729145,0.76139,2626.6,2626.5,4.39146736]
[1750062730950,0.76139,2626.6,2626.5,5.15288736]
[1750062731346,0.76139,2626.6,2626.5,4.39146736]
[1750062731554,0.76136,2626.7,2626.6,0.76139]
[1750062732048,0.76136,2626.7,2626.6,1.40889]
[1750062732453,0.76136,2626.7,2626.6,2.92967202]
[1750062732653,0.76136,2626.7,2626.6,2.16828202]
[1750062733157,0.76136,2626.7,2626.6,0.6475]
[1750062733651,1.27148055,2626.7,2626.6,0.6475]
[1750062734539,1.27148055,2626.7,2626.6,2.16828202]
[1750062734851,3.71792055,2626.7,2626.3,2.28107621]
[1750062735041,0.76148,2626.3,2626.2,2.28107621]
[1750062735352,0.7615,2626.2,2626.1,6.07848534]
[1750062735550,1.4356,2626.2,2626.1,6.07848534]
[1750062735741,1.4356,2626.2,2626.1,6.84001534]
[1750062735941,1.4356,2626.2,2626.1,6.07848534]
[1750062736343,2.09844529,2626.2,2626.1,6.07848534]
[1750062740251,0.76159,2625.9,2625.8,8.35956155]
[1750062740452,0.76159,2625.9,2625.8,2.87068534]
[1750062741051,0.76165,2625.7,2625.6,3.49248534]
[1750062741254,1.42449529,2625.7,2625.6,3.49248534]
[1750062741453,1.42449529,2625.7,2625.6,4.25416534]
[1750062742056,1.42449529,2625.7,2625.6,3.49248534]
[1750062742460,1.42449529,2625.7,2625.6,4.25416534]
[1750062742852,1.42449529,2625.7,2625.6,3.49248534]
[1750062744360,1.42449529,2625.7,2625.6,4.25416534]
[1750062744558,1.42449529,2625.7,2625.6,3.49248534]
[1750062746563,0.66284529,2625.7,2625.3,0.00571026]
[1750062746773,0.66284529,2625.7,2625.5,2.87068534]
[1750062746774,2.04798,2625.6,2625.5,2.87068534]
[1750062747260,2.71082529,2625.6,2625.5,2.87068534]
[1750062752370,1.42452529,2625.6,2625.5,2.87068534]
[1750062755666,2.69142529,2625.6,2625.5,2.87068534]
[1750062757368,1.42452529,2625.6,2625.5,3.63239534]
[1750062757569,1.42452529,2625.6,2625.5,2.87068534]
[1750062757773,1.42452529,2625.6,2625.5,3.53608534]
[1750062761769,1.42452529,2625.6,2625.5,4.29779534]
[1750062762164,1.42452529,2625.6,2625.5,4.94739534]
[1750062762775,1.42452529,2625.6,2625.5,6.17129534]
[1750062763270,0.66284529,2625.6,2625.5,6.17129534]
[1750062763871,0.66284529,2625.6,2625.5,8.45237155]
[1750062765669,0.66284529,2625.6,2625.5,7.69066155]
[1750062765870,1.42452529,2625.6,2625.5,6.9293]
[1750062766073,1.42452529,2625.6,2625.5,7.69101]
[1750062766771,0.66284529,2625.6,2625.5,6.17129534]
[1750062766964,0.66284529,2625.6,2625.5,8.45237155]
[1750062767165,0.66284529,2625.6,2625.5,6.17129534]
[1750062767369,1.42452529,2625.6,2625.5,6.17129534]
[1750062767671,1.42452529,2625.6,2625.5,8.45237155]
[1750062767862,0.66284529,2625.6,2625.5,8.45237155]
[1750062768064,1.42452529,2625.6,2625.5,8.45237155]
[1750062768873,1.42452529,2625.6,2625.5,6.17129534]
[1750062769380,1.42452529,2625.6,2625.5,4.94739534]
[1750062769576,0.66284529,2625.6,2625.5,7.22847155]
[1750062769785,0.66284529,2625.6,2625.5,6.23809534]
[1750062775380,0.658,2626.2,2626.0,0.76155]
[1750062775582,1.41951,2626.2,2626.1,3.48518534]
[1750062779083,0.76151,2626.2,2626.1,3.48518534]
[1750062779272,0.76151,2626.2,2626.1,4.24672534]
[1750062779988,0.76149,2626.3,2626.2,0.7615]
[1750062780187,6.7958,2626.4,2626.2,2.87068534]
[1750062780689,6.7958,2626.4,2626.1,2.03862]
[1750062780690,0.76151,2626.2,2626.1,2.03862]
[1750062780881,0.76151,2626.2,2626.1,4.90930534]
[1750062781082,0.7615,2626.3,2626.1,4.90930534]
[1750062781385,0.76151,2626.2,2626.1,4.14778534]
[1750062783086,0.76151,2626.2,2626.1,4.90932534]
[1750062783489,0.76151,2626.2,2626.1,4.14778534]
[1750062783683,3.04537055,2626.7,2626.1,4.14778534]
[1750062783684,2.27831587,2627.5,2626.6,3.2078]
[1750062783984,0.6563,2626.8,2626.7,2.87068534]
[1750062784186,0.6563,2626.8,2626.7,6.07848534]
[1750062784580,0.6563,2626.8,2626.7,6.83984534]
[1750062784981,0.6563,2626.8,2626.7,8.35854285]
[1750062785287,0.6499,2627.0,2626.9,0.76131]
[1750062785482,0.6563,2627.3,2627.2,0.76122]
[1750062785688,0.6563,2627.3,2627.2,6.83970534]
[1750062786386,0.6563,2627.3,2627.2,6.07848534]
[1750062786982,1.41749,2627.3,2627.2,6.07848534]
[1750062787583,3.18866071,2627.3,2627.2,6.07848534]
[1750062791492,3.18866071,2627.3,2627.2,3.2078]
[1750062791880,3.18866071,2627.3,2627.2,6.07848534]
[1750062798489,3.18866071,2627.3,2627.2,5.71948534]
[1750062800896,3.18866071,2627.3,2627.2,6.07848534]
[1750062801089,3.18866071,2627.3,2627.2,5.65988534]
[1750062804498,1.88306071,2627.3,2627.2,5.65988534]
[1750062806298,1.88306071,2627.3,2627.2,3.2078]
[1750062806500,0.76125,2627.1,2627.0,2.87068534]
[1750062807194,2.06425,2627.1,2627.0,2.87068534]
[1750062808101,2.06425,2627.1,2627.0,2.62258534]
[1750062809601,2.06425,2627.1,2627.0,2.43138534]
[1750062809809,2.06425,2627.1,2627.0,2.24018534]
[1750062810400,0.76128,2627.0,2626.9,3.2078]
[1750062813305,6.82928,2627.0,2626.9,3.2078]
[1750062813506,6.82928,2627.0,2626.9,3.016]
[1750062815409,0.76131,2626.9,2626.8,2.87068534]
[1750062815609,1.38101,2626.9,2626.8,6.07848534]
[1750062820313,1.38101,2626.9,2626.8,4.17472427]
[1750062820504,0.76139,2626.6,2626.5,0.00571026]
[1750062820705,0.76139,2626.6,2625.9,9.61483161]
[1750062820706,0.76157,2626.0,2625.9,9.61483161]
[1750062820902,0.7616,2625.9,2625.8,2.87068534]
[1750062822816,0.76165,2625.7,2625.6,0.00571026]
[1750062823006,0.76165,2625.7,2625.0,3.53148534]
[1750062823007,32.44768534,2625.7,2625.0,3.53148534]
[1750062823215,0.76189,2624.9,2624.8,2.87068534]
[1750062825817,0.76188,2625.0,2624.8,2.87068534]
[1750062827117,0.76189,2624.9,2624.8,2.87068534]
[1750062827617,0.76187,2625.0,2624.8,2.87068534]
[1750062827814,0.76187,2625.0,2624.9,2.87068534]
[1750062829319,1.58500954,2625.0,2624.9,2.87068534]
[1750062829512,1.58500954,2625.0,2623.7,3.2078]
[1750062829513,0.76218,2623.9,2623.7,3.2078]
[1750062829712,0.76218,2623.9,2623.7,2.87068534]
[1750062830012,6.135,2624.2,2623.8,3.2078]
[1750062830217,6.135,2624.2,2624.0,3.63281534]
[1750062830515,0.76209,2624.2,2624.1,4.15098534]
[1750062830717,0.76209,2624.2,2624.1,2.87068534]
[1750062830917,3.96989,2624.2,2624.1,2.87068534]
[1750062831122,10.10489,2624.2,2624.1,2.87068534]
[1750062831317,0.76215,2624.0,2623.9,2.87068534]
[1750062837422,0.76218,2623.9,2623.8,0.00571026]
[1750062837625,0.76218,2623.9,2623.8,2.8763956]
[1750062838718,0.76218,2623.9,2623.8,0.00571026]
[1750062840326,0.00571026,2624.4,2623.8,3.21351026]
[1750062840520,0.76209,2624.2,2624.1,2.87068534]
[1750062844027,0.76218,2623.9,2623.8,0.00571026]
[1750062844320,0.76218,2623.9,2623.3,1.8984]
[1750062844321,0.76232,2623.4,2623.3,1.8984]
[1750062844521,0.6608,2623.8,2623.3,1.8984]
[1750062844824,0.76232,2623.4,2623.3,4.76908534]
[1750062845123,0.76231,2623.5,2623.3,5.53143534]
[1750062845318,0.6608,2623.8,2623.3,4.76908534]
[1750062845527,0.76231,2623.5,2623.3,6.18122534]
[1750062845821,0.76222,2623.8,2623.6,0.76224]
[1750062846024,0.76222,2623.8,2623.7,4.10848534]
[1750062846229,0.76222,2623.8,2623.7,1.2378]
[1750062846428,0.76222,2623.8,2623.7,4.10848534]
[1750062848929,0.76222,2623.8,2623.7,2.87068534]
[1750062850832,0.76221,2623.8,2623.7,3.63292534]
[1750062852331,6.153,2623.9,2623.8,0.76221]
[1750062852830,6.91518,2623.9,2623.8,0.76221]
[1750062853034,3.21351026,2624.4,2623.8,8.2078]
[1750062853325,3.21351026,2624.4,2624.3,3.63274534]